bitfinex-derivatives/quotes_BTCF0:USTF0_20251103
["timestamp","ask_amount","ask_price","bid_price","bid_amount"]
[1762150834299,0.3739,107530.0,107520.0,0.05657]
[1762150834904,0.3719,107530.0,107520.0,0.05657]
[1762150835497,0.3699,107530.0,107520.0,0.05657]
[1762150835698,0.3709,107530.0,107520.0,0.05657]
[1762150839299,0.3699,107530.0,107520.0,0.05657]
[1762150839494,0.3709,107530.0,107520.0,0.05657]
[1762150839899,0.3719,107530.0,107520.0,0.05657]
[1762150840800,0.3689,107530.0,107520.0,0.05657]
[1762150841001,0.3739,107530.0,107520.0,0.05657]
[1762150843012,0.38122,107530.0,107520.0,0.05657]
[1762150844214,0.3739,107530.0,107520.0,0.05657]
[1762150845006,0.0519,107530.0,107520.0,0.05657]
[1762150846314,0.3739,107530.0,107520.0,0.05657]
[1762150846516,0.3719,107530.0,107520.0,0.05657]
[1762150846714,0.3669,107530.0,107520.0,0.05657]
[1762150846911,0.01238,107550.0,107530.0,0.02212]
[1762150847110,0.36636,107540.0,107530.0,0.05686]
[1762150848725,0.37036,107540.0,107530.0,0.05686]
[1762150851324,0.36736,107540.0,107530.0,0.05686]
[1762150851627,0.36636,107540.0,107530.0,0.05686]
[1762150852327,0.38985189,107540.0,107530.0,0.05686]
[1762150852527,0.36636,107540.0,107530.0,0.05686]
[1762150853222,0.38985951,107540.0,107530.0,0.05686]
[1762150854231,0.38985833,107540.0,107530.0,0.05686]
[1762150855931,0.39085833,107540.0,107530.0,0.05686]
[1762150856432,0.38985833,107540.0,107530.0,0.05686]
[1762150856730,0.06885833,107540.0,107530.0,0.05686]
[1762150856931,0.06885833,107540.0,107530.0,0.19965293]
[1762150856932,0.04536,107540.0,107530.0,0.19965293]
[1762150857531,0.02551,107540.0,107530.0,0.19965293]
[1762150857926,0.04836,107540.0,107530.0,0.19965293]
[1762150859121,0.04836,107540.0,107530.0,0.05686]
[1762150860429,0.04536,107540.0,107530.0,0.05686]
[1762150861024,0.04536,107540.0,107530.0,0.19965293]
[1762150861428,0.04436,107540.0,107530.0,0.19965293]
[1762150861629,0.02151,107540.0,107530.0,0.19965293]
[1762150862026,0.04436,107540.0,107530.0,0.05686]
[1762150862537,0.04436,107540.0,107530.0,0.17107062]
[1762150863624,0.02151,107540.0,107530.0,0.17107062]
[1762150863836,0.04436,107540.0,107530.0,0.17107062]
[1762150864933,0.28516124,107540.0,107530.0,0.04344]
[1762150865142,0.17095062,107540.0,107530.0,0.04344]
[1762150865438,0.17095062,107540.0,107520.0,0.19368839]
[1762150865439,0.05762,107530.0,107520.0,0.11029777]
[1762150865637,0.49375062,107530.0,107520.0,0.11029777]
[1762150865826,0.49375062,107530.0,107520.0,0.12371777]
[1762150866029,0.48049062,107530.0,107520.0,0.12371777]
[1762150867138,0.36624,107530.0,107520.0,0.24092839]
[1762150867530,0.16889062,107550.0,107540.0,0.05686]
[1762150867730,0.51385547,107550.0,107540.0,0.05686]
[1762150867935,0.18165547,107550.0,107540.0,0.17107062]
[1762150868137,0.48045062,107550.0,107540.0,0.17107062]
[1762150868738,0.48445062,107550.0,107540.0,0.17107062]
[1762150869226,0.04436,107540.0,107530.0,0.05686]
[1762150869426,0.28516124,107540.0,107530.0,0.04344]
[1762150869932,0.15857062,107540.0,107530.0,0.05686]
[1762150870531,0.17095062,107540.0,107530.0,0.04344]
[1762150871037,0.17095062,107540.0,107520.0,0.12371777]
[1762150871038,0.04436,107530.0,107520.0,0.12371777]
[1762150871234,0.48045062,107530.0,107520.0,0.12371777]
[1762150872236,0.48045062,107530.0,107520.0,0.12671777]
[1762150872441,0.48045062,107530.0,107520.0,0.12871777]
[1762150874246,0.48045062,107530.0,107520.0,0.24292839]
[1762150876043,0.48045062,107530.0,107520.0,0.17607062]
[1762150876645,0.36624,107530.0,107520.0,0.17607062]
[1762150877548,0.48045062,107530.0,107520.0,0.17607062]
[1762150879146,0.49371062,107530.0,107520.0,0.04844]
[1762150879644,0.49371062,107530.0,107520.0,0.04829]
[1762150880350,0.3795,107530.0,107520.0,0.04829]
[1762150880536,0.49371062,107530.0,107520.0,0.04829]
[1762150882452,0.49371062,107530.0,107520.0,0.005]
[1762150883047,0.49371062,107530.0,107520.0,0.02611]
[1762150884351,0.52234551,107530.0,107520.0,0.02611]
[1762150885348,0.52234551,107530.0,107520.0,0.04728]
[1762150885663,0.52234551,107530.0,107520.0,0.005]
[1762150886355,0.52234551,107530.0,107520.0,0.02704]
[1762150887053,0.52234551,107530.0,107520.0,0.005]
[1762150887254,0.04609,107500.0,107490.0,0.14077916]
[1762150887443,0.51081551,107500.0,107490.0,0.14077916]
[1762150887648,0.36797,107500.0,107490.0,0.14077916]
[1762150888349,0.37097,107500.0,107490.0,0.14077916]
[1762150889759,0.37197,107500.0,107490.0,0.14077916]
[1762150889955,0.36897,107500.0,107490.0,0.14077916]
[1762150890257,0.37297,107500.0,107490.0,0.14077916]
[1762150890956,0.37297,107500.0,107490.0,0.05715]
[1762150891853,0.05109,107500.0,107490.0,0.05715]
[1762150892059,0.36193,107500.0,107490.0,0.05715]
[1762150892754,0.36193,107500.0,107490.0,0.12400824]
[1762150892959,0.05109,107500.0,107490.0,0.26685375]
[1762150893161,0.32448,107500.0,107490.0,0.19999551]
[1762150893364,0.32448,107500.0,107490.0,0.26685945]
[1762150893654,0.005,107500.0,107490.0,0.87246155]
[1762150893863,0.11941,107520.0,107510.0,0.05706]
[1762150894065,0.36797,107520.0,107510.0,0.05706]
[1762150894465,0.04609,107520.0,107510.0,0.05706]
[1762150895161,0.01238,107540.0,107530.0,0.05706]
[1762150895162,0.05847,107540.0,107530.0,0.05706]
[1762150895369,0.40039613,107540.0,107530.0,0.05706]
[1762150895555,0.07851613,107540.0,107530.0,0.05706]
[1762150895860,0.39121615,107540.0,107530.0,0.05706]
[1762150896362,0.06933615,107540.0,107530.0,0.05706]
[1762150896954,0.05009,107540.0,107530.0,0.05706]
[1762150898160,0.20617551,107540.0,107530.0,0.04373]
[1762150898361,0.22942902,107540.0,107530.0,0.05706]
[1762150898556,0.22942902,107540.0,107530.0,0.04373]
[1762150898766,0.22942902,107540.0,107530.0,0.02204]
[1762150899558,0.04609,107530.0,107520.0,0.05706]
[1762150900770,0.04609,107530.0,107520.0,0.05806]
[1762150901667,0.04609,107530.0,107520.0,0.20090551]
[1762150902165,0.38115641,107550.0,107540.0,0.04373]
[1762150902367,0.40442567,107550.0,107540.0,0.04373]
[1762150902771,0.05933,107540.0,107530.0,0.04373]
[1762150902971,0.08259926,107540.0,107530.0,0.04373]
[1762150903174,0.08259926,107540.0,107530.0,0.05706]
[1762150903371,0.06935926,107540.0,107530.0,0.05706]
[1762150904469,0.18359054,107540.0,107530.0,0.17129128]
[1762150905373,0.19683054,107540.0,107530.0,0.02204]
[1762150905669,0.19783054,107540.0,107530.0,0.05701]
[1762150905970,0.18659054,107540.0,107530.0,0.05701]
[1762150906172,0.18659054,107540.0,107530.0,0.17124128]
[1762150907259,0.18659054,107540.0,107530.0,0.05701]
[1762150907976,0.18659054,107540.0,107530.0,0.17124128]
[1762150910274,0.18659054,107540.0,107530.0,0.05701]
[1762150910977,0.18659054,107540.0,107530.0,0.17124128]
[1762150913566,0.02626926,107540.0,107530.0,0.28547256]
[1762150913772,0.003,107540.0,107530.0,0.28547256]
[1762150914379,0.003,107540.0,107530.0,0.26420413]
[1762150914773,0.003,107540.0,107530.0,0.58600413]
[1762150914973,0.36817834,107560.0,107550.0,0.05757]
[1762150915174,0.06569286,107560.0,107550.0,0.17175673]
[1762150915476,0.02307286,107560.0,107550.0,0.17175673]
[1762150916180,0.02807286,107560.0,107550.0,0.49355673]
[1762150916482,0.03107286,107560.0,107550.0,0.70073356]
[1762150916675,2.86e-06,107560.0,107550.0,0.60774346]
[1762150917077,2.86e-06,107560.0,107550.0,0.70073356]
[1762150917275,2.86e-06,107560.0,107550.0,0.58654683]
[1762150917482,2.86e-06,107560.0,107550.0,0.49355673]
[1762150917779,2.86e-06,107560.0,107550.0,0.72599673]
[1762150918175,0.00900286,107560.0,107550.0,0.73534135]
[1762150918386,0.05162286,107560.0,107550.0,0.18110135]
[1762150918583,0.05162286,107560.0,107550.0,0.50286135]
[1762150918884,0.05162286,107560.0,107550.0,0.37933]
[1762150919181,0.05162286,107560.0,107550.0,0.49351673]
[1762150919580,0.06557286,107560.0,107550.0,0.04493]
[1762150919785,0.06557286,107560.0,107550.0,0.36669]
[1762150920785,0.06557286,107560.0,107530.0,0.01264]
[1762150920786,0.0215,107540.0,107530.0,0.01264]
[1762150921083,0.0215,107540.0,107530.0,0.04493]
[1762150921084,0.05657,107540.0,107530.0,0.04493]
[1762150921982,0.05657,107540.0,107530.0,0.04693]
[1762150922179,0.06057,107540.0,107530.0,0.04693]
[1762150923180,0.06057,107540.0,107530.0,0.002]
[1762150923375,0.62151865,107540.0,107530.0,0.002]
[1762150924678,0.05657,107520.0,107510.0,0.00011362]
[1762150925496,0.61755865,107520.0,107510.0,0.00011362]
[1762150925886,0.61855865,107520.0,107510.0,0.00011362]
[1762150926191,0.61855865,107520.0,107510.0,0.01311362]
[1762150928395,1.21855865,107520.0,107510.0,0.01311362]
[1762150932892,0.04262,107490.0,107480.0,0.12443296]
[1762150933798,0.02158693,107490.0,107480.0,0.12443296]
[1762150934000,0.02158693,107490.0,107480.0,0.13743296]
[1762150934300,8.693e-05,107490.0,107480.0,0.13743296]
[1762150934798,0.04270693,107490.0,107480.0,0.14043296]
[1762150935191,0.29477558,107490.0,107480.0,0.12779296]
[1762150936294,0.04270693,107490.0,107480.0,0.14054296]
[1762150937289,0.05554693,107490.0,107480.0,0.07368]
[1762150940011,0.04270693,107490.0,107480.0,0.1667306]
[1762150940305,8.693e-05,107490.0,107480.0,0.14054296]
[1762150942395,0.04252693,107490.0,107480.0,0.14054296]
[1762150942601,0.05536693,107490.0,107480.0,0.14054296]
[1762150944795,0.05536693,107490.0,107480.0,0.12779296]
[1762150947206,0.04252693,107490.0,107480.0,0.14054296]
[1762150948204,0.05592693,107490.0,107480.0,0.14054296]
[1762150950612,0.29515558,107490.0,107480.0,0.12779296]
[1762150950815,0.29515558,107490.0,107480.0,0.08286296]
[1762150951202,0.89515558,107490.0,107480.0,0.016]
[1762150953909,0.65592693,107490.0,107480.0,0.03833]
[1762150954109,0.89515558,107490.0,107480.0,0.016]
[1762150954707,0.89515558,107490.0,107480.0,0.06127]
[1762150955119,0.89515558,107490.0,107480.0,0.03833]
[1762150956015,0.02150693,107490.0,107480.0,0.07402]
[1762150956204,0.02150693,107490.0,107480.0,0.14088296]
[1762150956408,0.04379693,107490.0,107480.0,0.14088296]
[1762150956711,0.04379693,107490.0,107480.0,0.07402]
[1762150957310,0.04379693,107490.0,107480.0,0.15764916]
[1762150957714,0.04379693,107490.0,107480.0,0.07402]
[1762150957908,0.04379693,107490.0,107480.0,0.15764916]
[1762150959111,8.693e-05,107490.0,107480.0,0.15764916]
[1762150967922,0.05739693,107490.0,107480.0,0.15764916]
[1762150969313,0.04442693,107490.0,107480.0,0.15764916]
[1762150970725,0.02290693,107490.0,107480.0,0.15764916]
[1762150970925,0.04442693,107490.0,107480.0,0.15764916]
[1762150972527,0.05739693,107490.0,107480.0,0.14489916]
[1762150972828,0.05739693,107490.0,107480.0,0.15822916]
[1762150973030,0.04442693,107490.0,107480.0,0.15822916]
[1762150974732,0.05739693,107490.0,107480.0,0.15822916]
[1762150975027,0.04442693,107490.0,107480.0,0.15822916]
[1762150975930,0.05739693,107490.0,107480.0,0.14489916]
[1762150976330,0.20032862,107490.0,107480.0,0.14489916]
[1762150976628,0.05739693,107490.0,107480.0,0.14489916]
[1762150977528,0.05739693,107490.0,107480.0,0.15822916]
[1762150977931,0.05739693,107490.0,107480.0,0.0746]
[1762150978235,0.05739693,107490.0,107480.0,0.15822916]
[1762150979633,0.04442693,107490.0,107480.0,0.15822916]
[1762150980426,8.693e-05,107490.0,107480.0,0.15822916]
[1762150980927,0.02290693,107490.0,107480.0,0.15822916]
[1762150981126,0.04442693,107490.0,107480.0,0.15822916]
[1762150981432,8.693e-05,107490.0,107480.0,0.30116085]
[1762150982834,0.04442693,107490.0,107480.0,0.15822916]
[1762150983230,8.693e-05,107490.0,107480.0,0.15822916]
[1762150983432,0.27519498,107520.0,107510.0,0.04391]
[1762150983733,0.29803863,107520.0,107510.0,0.04391]
[1762150984129,0.08113365,107520.0,107510.0,0.04391]
[1762150984436,6.203e-05,107520.0,107510.0,0.05655]
[1762150984639,0.04540203,107520.0,107510.0,0.05655]
[1762150984841,0.04640203,107520.0,107510.0,0.12350785]
[1762150985545,0.04640203,107520.0,107510.0,0.05655]
[1762150986246,0.20230372,107520.0,107510.0,0.04391]
[1762150986839,0.05421,107500.0,107490.0,0.04391]
[1762150987045,0.19714169,107500.0,107490.0,0.04391]
[1762150987344,0.19714169,107500.0,107490.0,0.11086356]
[1762150987943,0.19714169,107500.0,107490.0,0.11686356]
[1762150988838,0.05421,107500.0,107490.0,0.11686356]
[1762150989941,0.02282,107500.0,107490.0,0.13019356]
[1762150990344,0.04434,107510.0,107500.0,0.05724]
[1762150990540,0.04434,107510.0,107500.0,0.12419278]
[1762150990744,0.04434,107510.0,107500.0,0.05724]
[1762150990934,0.04434,107510.0,107500.0,0.12419278]
[1762150991540,0.04434,107510.0,107500.0,0.12519278]
[1762150992947,0.05731,107510.0,107500.0,0.12519278]
[1762150993136,0.02282,107510.0,107500.0,0.12383278]
[1762150993337,0.04440203,107520.0,107510.0,0.05724]
[1762150994552,0.04540203,107520.0,107510.0,0.05724]
[1762150994740,0.20230372,107520.0,107510.0,0.04391]
[1762150996652,0.05937203,107520.0,107510.0,0.04391]
[1762150996850,0.04640203,107520.0,107510.0,0.05711]
[1762150997052,0.00206203,107520.0,107510.0,0.29306639]
[1762150997254,0.00206203,107520.0,107510.0,0.49001917]
[1762150997554,0.00206203,107520.0,107510.0,0.26699447]
[1762150997744,0.00206203,107520.0,107510.0,0.58871447]
[1762150998144,0.00206203,107520.0,107510.0,0.81173907]
[1762150998340,0.00206203,107520.0,107510.0,0.59797831]
[1762150998752,0.00206203,107520.0,107510.0,0.53102553]
[1762150999447,0.00206203,107520.0,107510.0,0.52176169]
[1762151000160,0.04540203,107520.0,107510.0,0.37883]
[1762151002257,0.02428203,107520.0,107510.0,0.37883]
[1762151002546,0.00206203,107520.0,107510.0,0.37883]
[1762151002744,0.00206203,107520.0,107510.0,0.52176169]
[1762151003144,0.00206203,107520.0,107510.0,0.61478629]
[1762151004753,0.00206203,107520.0,107510.0,0.52176169]
[1762151005460,0.00206203,107520.0,107510.0,0.61478639]
[1762151005958,0.00206203,107520.0,107510.0,0.52176169]
[1762151007564,0.00206203,107520.0,107510.0,0.95478639]
[1762151007759,0.06624014,107550.0,107540.0,0.045]
[1762151007958,0.08903854,107550.0,107540.0,0.045]
[1762151008953,0.24197023,107550.0,107540.0,0.02179]
[1762151009960,0.24497023,107550.0,107540.0,0.02179]
[1762151010263,0.24497023,107550.0,107540.0,0.045]
[1762151010759,0.03607,107540.0,107530.0,0.02179]
[1762151010966,0.04382,107520.0,107510.0,0.58980447]
[1762151011263,0.05759,107530.0,107520.0,0.056]
[1762151011465,0.04382,107530.0,107520.0,0.056]
[1762151012763,0.04782,107530.0,107520.0,0.056]
[1762151012964,0.06159,107530.0,107520.0,0.056]
[1762151013557,0.04782,107530.0,107520.0,0.056]
[1762151014065,0.04982,107530.0,107520.0,0.19893169]
[1762151014763,0.006,107530.0,107520.0,0.19893169]
[1762151017170,0.02752,107530.0,107520.0,0.19893169]
[1762151020370,0.02752,107530.0,107520.0,0.2844455]
[1762151020868,0.04982,107530.0,107520.0,0.2844455]
[1762151021570,0.006,107530.0,107520.0,0.2844455]
[1762151023869,0.02752,107530.0,107520.0,0.2844455]
[1762151024270,0.006,107530.0,107520.0,0.2844455]
[1762151024570,0.04982,107530.0,107520.0,0.2844455]
[1762151025658,0.04982,107530.0,107520.0,0.36814282]
[1762151025862,0.16404275,107530.0,107520.0,0.25392007]
[1762151026466,0.16404275,107530.0,107520.0,0.045]
[1762151026467,0.17768275,107530.0,107520.0,0.045]
[1762151027165,0.17768275,107530.0,107520.0,0.11193425]
[1762151031870,0.17768275,107530.0,107520.0,0.045]
[1762151033882,0.06346,107530.0,107520.0,0.045]
[1762151034081,0.17768275,107530.0,107520.0,0.15922275]
[1762151034471,0.17768275,107530.0,107520.0,0.16978275]
[1762151034672,0.17768275,107530.0,107520.0,0.236717]
[1762151035081,0.06346,107530.0,107520.0,0.236717]
[1762151035981,0.04982,107530.0,107520.0,0.35093975]
[1762151038182,0.04982,107530.0,107520.0,0.236717]
[1762151038385,0.04982,107530.0,107520.0,0.23672902]
[1762151041182,0.006,107530.0,107520.0,1.03557979]
[1762151041482,0.05875,107560.0,107550.0,0.04453]
[1762151041779,0.0911724,107560.0,107550.0,0.0565]
[1762151041977,0.06814139,107560.0,107550.0,0.0565]
[1762151042680,0.06814139,107560.0,107550.0,0.12338022]
[1762151042982,0.07075,107560.0,107550.0,0.0565]
[1762151046282,0.05718,107560.0,107550.0,0.17073477]
[1762151047580,0.07082,107560.0,107550.0,0.0565]
[1762151048984,0.05718,107560.0,107550.0,0.0565]
[1762151051886,0.07082,107560.0,107550.0,0.0565]
[1762151052993,0.05718,107560.0,107550.0,0.0565]
[1762151053188,0.012,107560.0,107550.0,0.17073477]
[1762151053892,0.03188625,107590.0,107580.0,0.0585]
[1762151054096,0.04518,107590.0,107580.0,0.17273477]
[1762151055000,0.05882,107590.0,107580.0,0.0585]
[1762151055194,0.0733319,107590.0,107580.0,0.0585]
[1762151055598,0.06418,107590.0,107580.0,0.0585]
[1762151057190,0.019,107590.0,107580.0,0.17273477]
[1762151057793,0.019,107590.0,107580.0,0.28696954]
[1762151058392,0.09587105,107610.0,107600.0,0.05169]
[1762151058598,0.08223105,107610.0,107600.0,0.16592477]
[1762151058798,0.08223105,107610.0,107600.0,0.05169]
[1762151061897,0.09560105,107610.0,107600.0,0.05169]
[1762151062400,0.20983582,107610.0,107600.0,0.04493]
[1762151062706,0.05631,107600.0,107590.0,0.04493]
[1762151062907,0.04294,107600.0,107590.0,0.05715]
[1762151063297,0.08223105,107610.0,107600.0,0.05817]
[1762151063502,0.08223105,107610.0,107600.0,0.17240477]
[1762151063503,0.03929105,107610.0,107600.0,0.17240477]
[1762151064297,0.03929105,107610.0,107600.0,0.29712204]
[1762151064501,0.03929105,107610.0,107600.0,0.61848204]
[1762151064901,0.08124065,107640.0,107630.0,0.04493]
[1762151065206,0.10416564,107640.0,107630.0,0.04493]
[1762151066414,0.10416564,107640.0,107630.0,0.04593]
[1762151067818,0.17865834,107640.0,107630.0,0.04593]
[1762151068813,0.17865834,107640.0,107630.0,0.001]
[1762151069014,1.01761038,107640.0,107630.0,0.001]
[1762151069513,0.0579,107610.0,107600.0,0.3047]
[1762151070311,0.0579,107610.0,107600.0,0.0439]
[1762151070911,0.0579,107590.0,107580.0,0.28634]
[1762151074817,0.0579,107590.0,107580.0,0.0439]
[1762151076521,0.0579,107590.0,107580.0,0.02178]
[1762151077409,0.06725496,107590.0,107580.0,0.02178]
[1762151077612,0.0579,107590.0,107580.0,0.0439]
[1762151077820,0.0579,107590.0,107580.0,0.02178]
[1762151078020,0.0579,107570.0,107560.0,0.43214022]
[1762151078920,0.02325,107570.0,107560.0,0.43214022]
[1762151079116,0.0126,107580.0,107560.0,0.41036022]
[1762151079323,0.0579,107580.0,107570.0,0.0439]
[1762151082210,0.0579,107580.0,107570.0,0.11078022]
[1762151084524,0.0579,107580.0,107570.0,0.0439]
[1762151084525,0.17205705,107580.0,107570.0,0.0439]
[1762151086422,0.05623,107570.0,107560.0,0.11197022]
[1762151087615,0.05623,107570.0,107560.0,0.22612727]
[1762151088424,0.05623,107570.0,107560.0,0.22712727]
[1762151092226,0.05623,107570.0,107560.0,0.11297022]
[1762151092440,0.05623,107570.0,107560.0,0.22712727]
[1762151096029,0.05623,107570.0,107560.0,0.11297022]
[1762151096333,0.05623,107570.0,107560.0,0.22712727]
[1762151096634,0.05623,107570.0,107560.0,0.11297022]
[1762151100222,0.17038705,107570.0,107560.0,0.04609]
[1762151100435,0.1704116,107570.0,107560.0,0.11297022]
[1762151102228,0.05623,107570.0,107560.0,0.22715182]
[1762151102628,0.1704116,107570.0,107560.0,0.22715182]
[1762151105527,0.05623,107570.0,107560.0,0.22715182]
[1762151105735,0.04259,107570.0,107560.0,0.34133342]
[1762151106133,0.05519,107580.0,107570.0,0.04509]
[1762151106333,0.05519,107580.0,107570.0,0.22615182]
[1762151107043,0.2835532,107580.0,107570.0,0.11197022]
[1762151108241,0.1693716,107580.0,107570.0,0.11197022]
[1762151110238,0.2835532,107580.0,107570.0,0.11197022]
[1762151111235,0.05519,107580.0,107570.0,0.11197022]
[1762151111439,0.1693716,107580.0,107570.0,0.11197022]
[1762151112035,0.05519,107580.0,107570.0,0.11197022]
[1762151112245,0.05519,107580.0,107570.0,0.22615182]
[1762151113845,0.1693716,107580.0,107570.0,0.22615182]
[1762151114848,0.1693716,107580.0,107570.0,0.23550334]
[1762151115148,0.05519,107580.0,107570.0,0.23550334]
[1762151115349,0.1693716,107580.0,107570.0,0.23550334]
[1762151115647,0.02147,107580.0,107570.0,0.24248334]
[1762151115849,0.1725616,107590.0,107580.0,0.04383]
[1762151116037,0.1725616,107590.0,107580.0,0.1580116]
[1762151116437,0.0687668,107590.0,107580.0,0.1580116]
[1762151116637,0.52153955,107600.0,107580.0,0.31805342]
[1762151116844,0.59030662,107600.0,107590.0,0.1580116]
[1762151117248,0.59956631,107600.0,107590.0,0.04383]
[1762151118550,0.59030662,107600.0,107590.0,0.04383]
[1762151120949,0.59984208,107600.0,107590.0,0.04383]
[1762151121254,0.59030662,107600.0,107590.0,0.04383]
[1762151121755,0.56731955,107600.0,107590.0,0.04383]
[1762151121958,0.59029013,107600.0,107590.0,0.04383]
[1762151122154,0.56731955,107600.0,107590.0,0.04383]
[1762151123850,0.56731955,107600.0,107590.0,0.1580116]
[1762151124050,0.56731955,107600.0,107590.0,0.04383]
[1762151124247,0.05875,107580.0,107570.0,0.12006174]
[1762151124450,0.05875,107580.0,107570.0,0.23424334]
[1762151125449,0.1729316,107580.0,107570.0,0.22489182]
[1762151126251,0.05875,107580.0,107570.0,0.22489182]
[1762151128454,0.04578,107580.0,107570.0,0.32484472]
[1762151128856,0.02319,107580.0,107570.0,0.23187182]
[1762151129055,0.05742,107590.0,107580.0,0.0428]
[1762151129254,0.05742,107590.0,107580.0,0.1569816]
[1762151129762,0.1716016,107590.0,107580.0,0.1569816]
[1762151135656,0.1716016,107590.0,107580.0,0.22386182]
[1762151137278,0.1716016,107590.0,107580.0,0.10968022]
[1762151137480,0.05742,107590.0,107580.0,0.10968022]
[1762151137678,0.1716016,107590.0,107580.0,0.22386182]
[1762151138871,0.1716016,107590.0,107580.0,0.10968022]
[1762151139071,0.1716016,107590.0,107580.0,0.22386182]
[1762151139982,0.05742,107590.0,107580.0,0.22386182]
[1762151140177,0.1716016,107590.0,107580.0,0.22386182]
[1762151141784,0.1716016,107590.0,107580.0,0.10968022]
[1762151143979,0.1716016,107590.0,107580.0,0.06688022]
[1762151144279,0.05787,107580.0,107570.0,0.08369732]
[1762151144483,0.05787,107570.0,107560.0,0.08369732]
[1762151144684,0.2862332,107570.0,107560.0,0.08369732]
[1762151145079,0.8862332,107570.0,107560.0,0.04869732]
[1762151145276,0.00526,107560.0,107550.0,0.08363321]
[1762151145586,0.5996932,107560.0,107550.0,0.08363321]
[1762151145995,0.04479,107540.0,107530.0,0.17204315]
[1762151146284,0.1589716,107550.0,107540.0,0.05778]
[1762151146585,0.04479,107550.0,107540.0,0.1719616]
[1762151146978,0.36607,107550.0,107540.0,0.1719616]
[1762151147574,0.04479,107550.0,107540.0,0.1719616]
[1762151147779,0.1723916,107570.0,107560.0,0.05778]
[1762151147987,0.5174771,107570.0,107560.0,0.05778]
[1762151148188,0.1961971,107570.0,107560.0,0.05778]
[1762151148389,0.5174771,107570.0,107560.0,0.05778]
[1762151148586,0.02185,107550.0,107540.0,0.01918]
[1762151148779,0.1717216,107550.0,107540.0,0.06378]
[1762151148973,0.04479,107550.0,107540.0,0.06378]
[1762151149179,0.02185,107550.0,107540.0,0.1779616]
[1762151149678,0.04479,107550.0,107540.0,0.1779616]
[1762151150285,0.04479,107550.0,107540.0,0.1719616]
[1762151150688,0.1589716,107550.0,107540.0,0.1719616]
[1762151151192,0.1589716,107550.0,107540.0,0.1779616]
[1762151153685,0.04479,107550.0,107540.0,0.1779616]
[1762151155194,0.1589716,107550.0,107540.0,0.06378]
[1762151155493,0.1644516,107550.0,107540.0,0.06378]
[1762151158996,0.1644516,107550.0,107540.0,0.06378]
[1762151160195,0.1644516,107550.0,107540.0,0.0506]
[1762151160390,0.16450064,107550.0,107540.0,0.0506]
[1762151160992,0.16450064,107550.0,107540.0,0.006]
[1762151161188,0.16450064,107550.0,107540.0,0.02873]
[1762151161388,0.16450064,107550.0,107540.0,0.0506]
[1762151163085,0.16450064,107550.0,107540.0,0.006]
[1762151163289,0.87873128,107550.0,107540.0,0.006]
[1762151163693,0.05221,107540.0,107530.0,8.155e-05]
[1762151163993,0.48776064,107540.0,107530.0,8.155e-05]
[1762151165901,0.48776064,107540.0,107530.0,0.00608155]
[1762151166695,0.48776064,107540.0,107530.0,0.05068155]
[1762151166892,0.48776064,107540.0,107530.0,0.00608155]
[1762151167990,0.04479,107510.0,107500.0,0.12447268]
[1762151169103,0.04487155,107510.0,107500.0,0.12447268]
[1762151169403,0.04487155,107510.0,107500.0,0.14047268]
[1762151172006,0.12073396,107510.0,107500.0,0.14047268]
[1762151172206,0.04487155,107510.0,107500.0,0.14047268]
[1762151174003,0.15910219,107510.0,107500.0,0.14047268]
[1762151175304,0.04487155,107510.0,107500.0,0.14047268]
[1762151177602,0.05430493,107510.0,107500.0,0.14047268]
[1762151179903,0.04487155,107510.0,107500.0,0.14047268]
[1762151182710,8.155e-05,107510.0,107500.0,0.14047268]
[1762151182913,8.155e-05,107510.0,107500.0,0.25470332]
[1762151183210,0.04456155,107510.0,107500.0,0.25470332]
[1762151185515,0.04456155,107510.0,107500.0,0.14047268]
[1762151187316,0.04456155,107510.0,107500.0,0.1406388]
[1762151190119,0.15879219,107510.0,107500.0,0.1406388]
[1762151190319,0.04456155,107510.0,107500.0,0.1406388]
[1762151193321,0.04456155,107510.0,107500.0,0.07378]
[1762151194417,0.05004155,107510.0,107500.0,0.016]
[1762151194618,0.05178,107500.0,107490.0,0.14162087]
[1762151194823,0.48741064,107500.0,107490.0,0.14162087]
[1762151195524,0.47999064,107500.0,107490.0,0.14162087]
[1762151195719,0.47999064,107500.0,107490.0,0.15062087]
[1762151196121,0.47999064,107500.0,107490.0,0.06727]
[1762151196321,0.47999064,107500.0,107490.0,0.15062087]
[1762151196830,0.48099064,107500.0,107490.0,0.15062087]
[1762151197423,0.48099064,107500.0,107490.0,0.14162087]
[1762151198134,0.48841064,107500.0,107490.0,0.10598087]
[1762151198332,0.48099064,107500.0,107490.0,0.14224087]
[1762151198738,0.48099064,107500.0,107490.0,0.05889]
[1762151200229,0.48099064,107500.0,107490.0,0.14224087]
[1762151200424,0.48099064,107500.0,107490.0,0.05889]
[1762151202337,0.48099064,107500.0,107490.0,0.14224087]
[1762151202740,0.48099064,107500.0,107490.0,0.05889]
[1762151203736,0.36676,107500.0,107490.0,0.05889]
[1762151204246,0.04536,107500.0,107490.0,0.05889]
[1762151204741,0.15959064,107500.0,107490.0,0.05889]
[1762151206743,0.04536,107500.0,107490.0,0.05889]
[1762151208443,0.04466,107500.0,107490.0,0.05889]
[1762151210944,0.001,107500.0,107490.0,0.17312064]
[1762151211546,0.02311,107500.0,107490.0,0.17312064]
[1762151211740,0.04466,107500.0,107490.0,0.17312064]
[1762151212345,0.04466,107500.0,107490.0,0.05889]
[1762151218053,0.15889064,107500.0,107490.0,0.05889]
[1762151221359,0.15889064,107500.0,107490.0,0.06089]
[1762151221749,0.16631064,107500.0,107490.0,0.06089]
[1762151222047,0.04466,107500.0,107490.0,0.06089]
[1762151222254,0.04466,107500.0,107490.0,0.26816284]
[1762151222255,0.001,107500.0,107490.0,0.26816284]
[1762151222443,8.155e-05,107510.0,107490.0,0.3824785]
[1762151222649,8.155e-05,107510.0,107500.0,0.2866663]
[1762151223956,8.155e-05,107510.0,107500.0,0.2916663]
[1762151224143,8.155e-05,107510.0,107500.0,0.39401243]
[1762151224350,8.155e-05,107510.0,107500.0,0.39501243]
[1762151225351,8.155e-05,107510.0,107500.0,0.30197953]
[1762151225658,8.155e-05,107510.0,107500.0,0.29697953]
[1762151225961,0.18282737,107540.0,107530.0,0.05812]
[1762151226258,0.50346514,107540.0,107530.0,0.05812]
[1762151227056,0.50646514,107540.0,107530.0,0.05812]
[1762151227261,0.62721829,107540.0,107530.0,0.0449]
[1762151227464,0.70228609,107540.0,107530.0,0.05812]